[Event "*** Titled Tuesday Blitz"]
[Site "Chess.com"]
[Date "2018.06.05"]
[Round "5"]
[White "djamir"]
[Black "Galileo22"]
[Result "0-1"]
[WhiteElo "2563"]
[BlackElo "2346"]
[TimeControl "180+2"]
[EndTime "14:14:10 PDT"]
[Termination "Galileo22 won by checkmate"]

1. d4 {[%clk 0:03:01.9]} 1... Nf6 {[%clk 0:03:00.7]} 2. Nf3 {[%clk 0:03:02.1]}
2... e6 {[%clk 0:03:01.1]} 3. c4 {[%clk 0:03:03.2]} 3... d5 {[%clk 0:03:01.2]}
4. Nc3 {[%clk 0:03:03.2]} 4... c5 {[%clk 0:02:59.7]} 5. e3 {[%clk 0:02:56.6]}
5... Nc6 {[%clk 0:02:58.6]} 6. a3 {[%clk 0:02:57.3]} 6... b6 {[%clk 0:02:55.7]}
7. cxd5 {[%clk 0:02:55.2]} 7... exd5 {[%clk 0:02:48.8]} 8. Bb5 {[%clk 0:02:56]}
8... Bb7 {[%clk 0:02:41.4]} 9. Ne5 {[%clk 0:02:46.1]} 9... Qc7 {[%clk 0:02:36]}
10. Qa4 {[%clk 0:02:28.4]} 10... Rc8 {[%clk 0:02:33.8]} 11. Qxa7 {[%clk
0:02:28.8]} 11... Bd6 {[%clk 0:02:18.7]} 12. Nxc6 {[%clk 0:02:16.4]} 12... O-O
{[%clk 0:02:01.8]} 13. Qa4 {[%clk 0:01:45.1]} 13... Ra8 {[%clk 0:01:46.8]} 14.
Qd1 {[%clk 0:01:04.2]} 14... Bxc6 {[%clk 0:01:44.7]} 15. h3 {[%clk 0:01:04.6]}
15... c4 {[%clk 0:01:36.3]} 16. O-O {[%clk 0:01:03.1]} 16... Qd7 {[%clk
0:01:31.9]} 17. Bxc6 {[%clk 0:00:56.9]} 17... Qxc6 {[%clk 0:01:33.7]} 18. a4
{[%clk 0:00:42]} 18... Rfe8 {[%clk 0:01:32.3]} 19. Bd2 {[%clk 0:00:40.1]} 19...
Re7 {[%clk 0:01:18.6]} 20. Nb5 {[%clk 0:00:40.7]} 20... Re6 {[%clk 0:00:59.7]}
21. b3 {[%clk 0:00:41]} 21... Rae8 {[%clk 0:00:46.3]} 22. Rc1 {[%clk 0:00:36.1]}
22... Bb8 {[%clk 0:00:42.7]} 23. bxc4 {[%clk 0:00:29.9]} 23... dxc4 {[%clk
0:00:42.3]} 24. Qc2 {[%clk 0:00:30.8]} 24... Ne4 {[%clk 0:00:35.8]} 25. Be1
{[%clk 0:00:31.9]} 25... Rg6 {[%clk 0:00:21.1]} 26. Qxc4 {[%clk 0:00:31.2]}
26... Qd7 {[%clk 0:00:21.2]} 27. Kh1 {[%clk 0:00:27.2]} 27... Rh6 {[%clk
0:00:20.9]} 28. f4 {[%clk 0:00:10.4]} 28... Nf6 {[%clk 0:00:13.8]} 29. Rf3
{[%clk 0:00:10.6]} 29... Rh5 {[%clk 0:00:10.4]} 30. Qc6 {[%clk 0:00:11.4]} 30...
Qe7 {[%clk 0:00:11.4]} 31. Bf2 {[%clk 0:00:12.1]} 31... Ne4 {[%clk 0:00:09.9]}
32. Bg1 {[%clk 0:00:12.3]} 32... Rf5 {[%clk 0:00:10.2]} 33. g4 {[%clk
0:00:12.9]} 33... Rf6 {[%clk 0:00:11.3]} 34. Qc2 {[%clk 0:00:13.3]} 34... Re6
{[%clk 0:00:12.4]} 35. Kg2 {[%clk 0:00:13.7]} 35... f5 {[%clk 0:00:12.8]} 36.
Qe2 {[%clk 0:00:12.6]} 36... fxg4 {[%clk 0:00:12.5]} 37. hxg4 {[%clk 0:00:14.5]}
37... Rf6 {[%clk 0:00:13.6]} 38. Rh3 {[%clk 0:00:15.5]} 38... Rff8 {[%clk
0:00:14.4]} 39. Qc4+ {[%clk 0:00:16.8]} 39... Kh8 {[%clk 0:00:15.5]} 40. Rc2
{[%clk 0:00:16.9]} 40... Nf6 {[%clk 0:00:16.4]} 41. Qe2 {[%clk 0:00:17.7]} 41...
Qxe3 {[%clk 0:00:17.1]} 42. Kh2 {[%clk 0:00:19.2]} 42... Qxe2+ {[%clk
0:00:17.6]} 43. Rxe2 {[%clk 0:00:20.3]} 43... Rxe2+ {[%clk 0:00:19.4]} 44. Kh1
{[%clk 0:00:19.7]} 44... Nxg4 {[%clk 0:00:19.8]} 45. d5 {[%clk 0:00:18.9]} 45...
Bxf4 {[%clk 0:00:19.7]} 46. Bxb6 {[%clk 0:00:19.1]} 46... Be5 {[%clk 0:00:18.2]}
47. Bg1 {[%clk 0:00:16.5]} 47... Rf1 {[%clk 0:00:16.4]} 48. Rf3 {[%clk
0:00:13.3]} 48... Rh2# {[%clk 0:00:16.4]} 0-1

[Event "*** Titled Tuesday Blitz"]
[Site "Chess.com"]
[Date "2018.06.05"]
[Round "5"]
[White "robbykevlishvili"]
[Black "cukus"]
[Result "0-1"]
[WhiteElo "2503"]
[BlackElo "2403"]
[TimeControl "180+2"]
[EndTime "14:14:14 PDT"]
[Termination "cukus won by checkmate"]

1. e4 {[%clk 0:02:57.9]} 1... e5 {[%clk 0:03:00.3]} 2. Nf3 {[%clk 0:02:58.3]}
2... Nf6 {[%clk 0:03:01.2]} 3. Nxe5 {[%clk 0:02:57.8]} 3... d6 {[%clk
0:03:02.2]} 4. Nf3 {[%clk 0:02:59.1]} 4... Nxe4 {[%clk 0:03:03]} 5. Nc3 {[%clk
0:03:00.6]} 5... Nxc3 {[%clk 0:03:04]} 6. dxc3 {[%clk 0:03:02.5]} 6... Be7
{[%clk 0:03:05.4]} 7. Be3 {[%clk 0:03:04.2]} 7... O-O {[%clk 0:03:06.6]} 8. Qd2
{[%clk 0:03:05.8]} 8... Nd7 {[%clk 0:03:08]} 9. O-O-O {[%clk 0:03:07.3]} 9...
Nf6 {[%clk 0:03:09.2]} 10. Bd3 {[%clk 0:03:07.4]} 10... Re8 {[%clk 0:03:05.7]}
11. h3 {[%clk 0:03:08.2]} 11... d5 {[%clk 0:03:00]} 12. Kb1 {[%clk 0:03:08.7]}
12... c5 {[%clk 0:02:57.8]} 13. Rhe1 {[%clk 0:03:05.2]} 13... Be6 {[%clk
0:02:45]} 14. Ng5 {[%clk 0:03:03]} 14... Bd7 {[%clk 0:02:43.5]} 15. f4 {[%clk
0:03:03.1]} 15... b5 {[%clk 0:02:13.2]} 16. Nf3 {[%clk 0:02:29]} 16... Bd6
{[%clk 0:01:10.7]} 17. Ne5 {[%clk 0:02:28.5]} 17... d4 {[%clk 0:00:55.6]} 18.
cxd4 {[%clk 0:02:28.8]} 18... c4 {[%clk 0:00:55.3]} 19. Be2 {[%clk 0:02:28.9]}
19... Ne4 {[%clk 0:00:47.5]} 20. Qc1 {[%clk 0:02:25.8]} 20... c3 {[%clk
0:00:35.3]} 21. b3 {[%clk 0:02:22.3]} 21... Qe7 {[%clk 0:00:25.8]} 22. Bf3
{[%clk 0:02:22.9]} 22... Ba3 {[%clk 0:00:24.3]} 23. Bxe4 {[%clk 0:02:14.7]}
23... Bxc1 {[%clk 0:00:25]} 24. Bxc1 {[%clk 0:02:16.6]} 24... Rad8 {[%clk
0:00:22.6]} 25. Re3 {[%clk 0:02:09.9]} 25... b4 {[%clk 0:00:21.5]} 26. d5 {[%clk
0:02:09.4]} 26... Qc5 {[%clk 0:00:21]} 27. Nxd7 {[%clk 0:01:56]} 27... Rxd7
{[%clk 0:00:21.4]} 28. Bxh7+ {[%clk 0:01:56.3]} 28... Kxh7 {[%clk 0:00:23]} 29.
Rxe8 {[%clk 0:01:56.9]} 29... Rxd5 {[%clk 0:00:24.6]} 30. Rde1 {[%clk
0:01:57.1]} 30... a5 {[%clk 0:00:18.9]} 31. a4 {[%clk 0:01:56.8]} 31... bxa3
{[%clk 0:00:19.3]} 32. Ka2 {[%clk 0:01:53.1]} 32... Rd2 {[%clk 0:00:17.3]} 33.
R8e2 {[%clk 0:01:46.5]} 33... Rxe2 {[%clk 0:00:17.8]} 34. Rxe2 {[%clk
0:01:48.4]} 34... Qd4 {[%clk 0:00:15.8]} 35. Bxa3 {[%clk 0:01:42.1]} 35... a4
{[%clk 0:00:17.2]} 36. Re1 {[%clk 0:01:38.6]} 36... Qd2 {[%clk 0:00:17]} 37. Rc1
{[%clk 0:01:39.5]} 37... Qxg2 {[%clk 0:00:13.7]} 38. bxa4 {[%clk 0:01:38.3]}
38... Qd5+ {[%clk 0:00:12.6]} 39. Ka1 {[%clk 0:01:39]} 39... Qc4 {[%clk
0:00:09.3]} 40. a5 {[%clk 0:01:39.1]} 40... Qa4 {[%clk 0:00:09.8]} 41. Ka2
{[%clk 0:01:39.3]} 41... Qxa5 {[%clk 0:00:09.4]} 42. Kb3 {[%clk 0:01:40.3]}
42... Qf5 {[%clk 0:00:06.4]} 43. Kxc3 {[%clk 0:01:39.9]} 43... Qxf4 {[%clk
0:00:07.4]} 44. Kb2 {[%clk 0:01:40.9]} 44... Qe5+ {[%clk 0:00:07.3]} 45. Kb1
{[%clk 0:01:38]} 45... f5 {[%clk 0:00:07.6]} 46. c4 {[%clk 0:01:36.4]} 46... f4
{[%clk 0:00:04.9]} 47. c5 {[%clk 0:01:37.1]} 47... Qe4+ {[%clk 0:00:06.4]} 48.
Kb2 {[%clk 0:01:37.4]} 48... Qc6 {[%clk 0:00:07.1]} 49. Bb4 {[%clk 0:01:37.6]}
49... f3 {[%clk 0:00:07.5]} 50. Kb3 {[%clk 0:01:37.2]} 50... f2 {[%clk
0:00:07.6]} 51. Ba3 {[%clk 0:01:34.3]} 51... f1=Q {[%clk 0:00:06.1]} 52. Rxf1
{[%clk 0:01:34.1]} 52... Qb5+ {[%clk 0:00:07.4]} 53. Kc3 {[%clk 0:01:35.3]}
53... Qxf1 {[%clk 0:00:08.4]} 54. Bb4 {[%clk 0:01:36.9]} 54... Qxh3+ {[%clk
0:00:09.3]} 55. Kd4 {[%clk 0:01:38.5]} 55... Qd7+ {[%clk 0:00:10.3]} 56. Ke5
{[%clk 0:01:39.5]} 56... Qc6 {[%clk 0:00:11.6]} 57. Ba3 {[%clk 0:01:40.1]} 57...
Kg6 {[%clk 0:00:12.3]} 58. Bb4 {[%clk 0:01:41.2]} 58... Kf7 {[%clk 0:00:13.5]}
59. Ba3 {[%clk 0:01:42.4]} 59... g5 {[%clk 0:00:13.4]} 60. Kf5 {[%clk
0:01:43.3]} 60... Qf6+ {[%clk 0:00:13.7]} 61. Kg4 {[%clk 0:01:44.3]} 61... Kg6
{[%clk 0:00:14.9]} 62. Bb4 {[%clk 0:01:44.1]} 62... Qd4+ {[%clk 0:00:15.7]} 63.
Kh3 {[%clk 0:01:45.2]} 63... Qxb4 {[%clk 0:00:16]} 64. c6 {[%clk 0:01:47.1]}
64... Qd6 {[%clk 0:00:16.1]} 65. c7 {[%clk 0:01:49]} 65... Qxc7 {[%clk
0:00:17.2]} 66. Kg4 {[%clk 0:01:50.2]} 66... Qf4+ {[%clk 0:00:18.1]} 67. Kh3
{[%clk 0:01:51.2]} 67... Qh4+ {[%clk 0:00:17.6]} 68. Kg2 {[%clk 0:01:53.1]}
68... g4 {[%clk 0:00:18.6]} 69. Kg1 {[%clk 0:01:54]} 69... Qh3 {[%clk
0:00:18.2]} 70. Kf2 {[%clk 0:01:55]} 70... Qf3+ {[%clk 0:00:19.4]} 71. Kg1
{[%clk 0:01:56.9]} 71... Qe2 {[%clk 0:00:20.5]} 72. Kh1 {[%clk 0:01:57.8]} 72...
Kg5 {[%clk 0:00:22]} 73. Kg1 {[%clk 0:01:59.7]} 73... Kh4 {[%clk 0:00:23.3]} 74.
Kh1 {[%clk 0:02:01.6]} 74... Kg3 {[%clk 0:00:24.8]} 75. Kg1 {[%clk 0:02:03.5]}
75... Qg2# {[%clk 0:00:26.1]} 0-1

[Event "*** Titled Tuesday Blitz"]
[Site "Chess.com"]
[Date "2018.06.05"]
[Round "5"]
[White "GoingKronos"]
[Black "Jungle_Jaguar"]
[Result "1/2-1/2"]
[WhiteElo "2337"]
[BlackElo "2444"]
[TimeControl "180+2"]
[EndTime "14:14:17 PDT"]
[Termination "Game drawn by stalemate"]

1. Nf3 {[%clk 0:03:00.9]} 1... Nf6 {[%clk 0:03:00.6]} 2. c4 {[%clk 0:02:59.7]}
2... e6 {[%clk 0:03:01.1]} 3. g3 {[%clk 0:03:00]} 3... d5 {[%clk 0:03:02.5]} 4.
Bg2 {[%clk 0:03:00.7]} 4... Be7 {[%clk 0:03:04.1]} 5. d4 {[%clk 0:03:00.9]} 5...
O-O {[%clk 0:03:05.6]} 6. O-O {[%clk 0:03:02]} 6... b6 {[%clk 0:03:06.8]} 7.
cxd5 {[%clk 0:02:57.1]} 7... exd5 {[%clk 0:03:07.2]} 8. Nc3 {[%clk 0:02:57.2]}
8... Bb7 {[%clk 0:03:07.1]} 9. Bf4 {[%clk 0:02:56.4]} 9... c5 {[%clk 0:03:05.1]}
10. dxc5 {[%clk 0:02:48.9]} 10... bxc5 {[%clk 0:03:05.2]} 11. Rc1 {[%clk
0:02:47.3]} 11... d4 {[%clk 0:03:03.7]} 12. Na4 {[%clk 0:02:46.9]} 12... Na6
{[%clk 0:03:03.1]} 13. Qb3 {[%clk 0:02:41.8]} 13... Bd5 {[%clk 0:03:02]} 14. Qb5
{[%clk 0:02:29.6]} 14... Nb4 {[%clk 0:02:32.7]} 15. Nxc5 {[%clk 0:02:03.5]}
15... Nxa2 {[%clk 0:02:28.9]} 16. Ra1 {[%clk 0:01:56.5]} 16... Qb6 {[%clk
0:02:21.2]} 17. Qxb6 {[%clk 0:01:50.4]} 17... axb6 {[%clk 0:02:22]} 18. Nd3
{[%clk 0:01:51]} 18... Bc5 {[%clk 0:02:16.2]} 19. Nfe5 {[%clk 0:01:44.5]} 19...
Bxg2 {[%clk 0:02:13.9]} 20. Kxg2 {[%clk 0:01:46.4]} 20... h6 {[%clk 0:02:03.1]}
21. h4 {[%clk 0:01:46.5]} 21... Rfd8 {[%clk 0:02:01.5]} 22. Bd2 {[%clk
0:01:46.5]} 22... Nd5 {[%clk 0:01:57.8]} 23. Nf4 {[%clk 0:01:41.9]} 23... Nxf4+
{[%clk 0:01:57.5]} 24. Bxf4 {[%clk 0:01:42.9]} 24... Nb4 {[%clk 0:01:56.6]} 25.
Rfd1 {[%clk 0:01:43.1]} 25... f6 {[%clk 0:01:56.4]} 26. Nd3 {[%clk 0:01:42.8]}
26... Nxd3 {[%clk 0:01:56.7]} 27. exd3 {[%clk 0:01:44.7]} 27... Kf7 {[%clk
0:01:55.4]} 28. Kf3 {[%clk 0:01:45.7]} 28... Ke6 {[%clk 0:01:56.2]} 29. Bd2
{[%clk 0:01:45.7]} 29... Kd5 {[%clk 0:01:56.7]} 30. Re1 {[%clk 0:01:45.5]} 30...
Re8 {[%clk 0:01:56.1]} 31. Rxe8 {[%clk 0:01:42.9]} 31... Rxa1 {[%clk 0:01:50.9]}
32. Rd8+ {[%clk 0:01:44]} 32... Ke6 {[%clk 0:01:49.8]} 33. b4 {[%clk 0:01:44.9]}
33... Bd6 {[%clk 0:01:49.8]} 34. Bf4 {[%clk 0:01:39]} 34... Bxb4 {[%clk
0:01:46.1]} 35. Rxd4 {[%clk 0:01:35.5]} 35... Bc5 {[%clk 0:01:46.3]} 36. Re4+
{[%clk 0:01:36.6]} 36... Kf5 {[%clk 0:01:46.9]} 37. g4+ {[%clk 0:01:36]} 37...
Kg6 {[%clk 0:01:48]} 38. d4 {[%clk 0:01:29.7]} 38... Ra3+ {[%clk 0:01:45.6]} 39.
Be3 {[%clk 0:01:30.9]} 39... Bf8 {[%clk 0:01:44.2]} 40. Re8 {[%clk 0:01:31.7]}
40... Kf7 {[%clk 0:01:44.6]} 41. Rb8 {[%clk 0:01:32.8]} 41... Rb3 {[%clk
0:01:45.8]} 42. Ke4 {[%clk 0:01:33.7]} 42... g5 {[%clk 0:01:43.9]} 43. h5 {[%clk
0:01:34.4]} 43... Rb1 {[%clk 0:01:40.9]} 44. Kf5 {[%clk 0:01:30.4]} 44... Be7
{[%clk 0:01:39.8]} 45. d5 {[%clk 0:01:28.4]} 45... Rb5 {[%clk 0:01:33.6]} 46.
Ke4 {[%clk 0:01:29.5]} 46... Rb4+ {[%clk 0:01:34.5]} 47. Kf5 {[%clk 0:01:30.5]}
47... Rb5 {[%clk 0:01:35.5]} 48. Ke4 {[%clk 0:01:31.5]} 48... Rb4+ {[%clk
0:01:36.7]} 49. Kd3 {[%clk 0:01:30.4]} 49... Rxg4 {[%clk 0:01:31.7]} 50. Rb7
{[%clk 0:01:29.6]} 50... Ke8 {[%clk 0:01:28.3]} 51. Bxb6 {[%clk 0:01:27.4]}
51... Rb4 {[%clk 0:01:22.2]} 52. Rb8+ {[%clk 0:01:23.5]} 52... Kd7 {[%clk
0:01:22]} 53. Ba7 {[%clk 0:01:24.8]} 53... Rxb8 {[%clk 0:01:17.9]} 54. Bxb8
{[%clk 0:01:26]} 54... Bd6 {[%clk 0:01:19]} 55. Bxd6 {[%clk 0:01:21]} 55... Kxd6
{[%clk 0:01:20.1]} 56. Ke4 {[%clk 0:01:22.6]} 56... g4 {[%clk 0:01:12.2]} 57.
Kf5 {[%clk 0:00:28.8]} 57... Kxd5 {[%clk 0:01:12.8]} 58. Kxf6 {[%clk 0:00:29.9]}
58... Ke4 {[%clk 0:01:12.4]} 59. Kg6 {[%clk 0:00:31]} 59... Kf3 {[%clk
0:01:13.1]} 60. Kf5 {[%clk 0:00:31.8]} 60... Kxf2 {[%clk 0:01:06]} 61. Kxg4
{[%clk 0:00:32.8]} 61... Ke3 {[%clk 0:01:07.6]} 62. Kf5 {[%clk 0:00:34.1]} 62...
Kd4 {[%clk 0:01:08]} 63. Kg6 {[%clk 0:00:35.3]} 63... Ke5 {[%clk 0:01:09.5]} 64.
Kxh6 {[%clk 0:00:36.6]} 64... Kf6 {[%clk 0:01:11]} 65. Kh7 {[%clk 0:00:37.9]}
65... Kf7 {[%clk 0:01:12.4]} 66. h6 {[%clk 0:00:37.8]} 66... Kf8 {[%clk
0:01:13.7]} 67. Kh8 {[%clk 0:00:38.8]} 67... Kf7 {[%clk 0:01:14.8]} 68. h7
{[%clk 0:00:40]} 68... Kf8 {[%clk 0:01:16.2]} 1/2-1/2

[Event "*** Titled Tuesday Blitz"]
[Site "Chess.com"]
[Date "2018.06.05"]
[Round "5"]
[White "HanSchut"]
[Black "PowerThinking2650"]
[Result "1-0"]
[WhiteElo "2256"]
[BlackElo "2340"]
[TimeControl "180+2"]
[EndTime "14:14:18 PDT"]
[Termination "HanSchut won on time"]

1. e4 {[%clk 0:03:01.9]} 1... e5 {[%clk 0:03:00.4]} 2. Nf3 {[%clk 0:03:02.3]}
2... Nc6 {[%clk 0:03:01.5]} 3. Bc4 {[%clk 0:03:03.6]} 3... Nf6 {[%clk
0:03:01.8]} 4. d4 {[%clk 0:03:04.1]} 4... exd4 {[%clk 0:03:02.1]} 5. e5 {[%clk
0:03:05.4]} 5... d5 {[%clk 0:03:03.3]} 6. Bb5 {[%clk 0:03:06.6]} 6... Ne4 {[%clk
0:03:04.5]} 7. Nxd4 {[%clk 0:03:07.8]} 7... Bc5 {[%clk 0:03:05.4]} 8. Be3 {[%clk
0:03:08]} 8... Bd7 {[%clk 0:02:57.1]} 9. Bxc6 {[%clk 0:03:08.1]} 9... bxc6
{[%clk 0:02:56]} 10. Nd2 {[%clk 0:03:09.4]} 10... Bxd4 {[%clk 0:02:16.2]} 11.
Bxd4 {[%clk 0:03:03.9]} 11... c5 {[%clk 0:02:17]} 12. Nxe4 {[%clk 0:02:51.8]}
12... cxd4 {[%clk 0:02:11.5]} 13. Nc5 {[%clk 0:02:50.9]} 13... Qg5 {[%clk
0:01:47.6]} 14. Qxd4 {[%clk 0:02:45.7]} 14... c6 {[%clk 0:01:05.7]} 15. Nxd7
{[%clk 0:02:20.5]} 15... Kxd7 {[%clk 0:01:03.8]} 16. O-O {[%clk 0:02:19.9]}
16... Rhe8 {[%clk 0:00:41.7]} 17. f4 {[%clk 0:02:19.2]} 17... Qf5 {[%clk
0:00:42.7]} 18. c4 {[%clk 0:02:14.1]} 18... Qe4 {[%clk 0:00:37.3]} 19. Qxe4
{[%clk 0:02:03]} 19... dxe4 {[%clk 0:00:38.5]} 20. Rad1+ {[%clk 0:02:04.2]}
20... Kc7 {[%clk 0:00:38.8]} 21. Rd4 {[%clk 0:01:53.5]} 21... f5 {[%clk
0:00:39]} 22. Rfd1 {[%clk 0:01:51.2]} 22... Re7 {[%clk 0:00:30.2]} 23. Kf2
{[%clk 0:01:43]} 23... a5 {[%clk 0:00:30.4]} 24. b3 {[%clk 0:01:33.5]} 24... a4
{[%clk 0:00:21.8]} 25. b4 {[%clk 0:01:31]} 25... c5 {[%clk 0:00:22.9]} 26. bxc5
{[%clk 0:01:26.9]} 26... Kc6 {[%clk 0:00:24.3]} 27. Rd5 {[%clk 0:01:17.6]} 27...
Rb8 {[%clk 0:00:25.4]} 28. R1d2 {[%clk 0:01:16.5]} 28... a3 {[%clk 0:00:25.9]}
29. Ke3 {[%clk 0:01:10.8]} 29... Rb2 {[%clk 0:00:26.5]} 30. g4 {[%clk
0:01:08.6]} 30... g6 {[%clk 0:00:25.5]} 31. h3 {[%clk 0:00:49]} 31... Reb7
{[%clk 0:00:21.5]} 32. gxf5 {[%clk 0:00:35.4]} 32... gxf5 {[%clk 0:00:21.6]} 33.
e6 {[%clk 0:00:35.4]} 33... Rxd2 {[%clk 0:00:17.8]} 34. Rxd2 {[%clk 0:00:35.4]}
34... Kxc5 {[%clk 0:00:17.5]} 35. Rd7 {[%clk 0:00:32]} 35... Rb8 {[%clk
0:00:18.4]} 36. Ra7 {[%clk 0:00:22.8]} 36... Kxc4 {[%clk 0:00:11.3]} 37. Rxa3
{[%clk 0:00:23.2]} 37... Re8 {[%clk 0:00:10.6]} 38. Ra6 {[%clk 0:00:23.9]} 38...
Kb5 {[%clk 0:00:11.7]} 39. Rd6 {[%clk 0:00:23.5]} 39... Kc5 {[%clk 0:00:12.7]}
40. Ra6 {[%clk 0:00:23.9]} 40... Kb5 {[%clk 0:00:13.4]} 41. Ra7 {[%clk
0:00:23.5]} 41... Rxe6 {[%clk 0:00:13.6]} 42. Rxh7 {[%clk 0:00:25]} 42... Ra6
{[%clk 0:00:13]} 43. Rh5 {[%clk 0:00:25.9]} 43... Ra3+ {[%clk 0:00:11.4]} 44.
Kd4 {[%clk 0:00:26.9]} 44... Rd3+ {[%clk 0:00:07.6]} 45. Ke5 {[%clk 0:00:25.7]}
45... e3 {[%clk 0:00:08.8]} 46. Rxf5 {[%clk 0:00:23.4]} 46... e2 {[%clk
0:00:06.9]} 47. Kf6+ {[%clk 0:00:24.5]} 47... Kc4 {[%clk 0:00:04]} 48. Re5
{[%clk 0:00:25.6]} 1-0

[Event "*** Titled Tuesday Blitz"]
[Site "Chess.com"]
[Date "2018.06.05"]
[Round "5"]
[White "GianmarcoVaR"]
[Black "1stSecond"]
[Result "0-1"]
[WhiteElo "2502"]
[BlackElo "2608"]
[TimeControl "180+2"]
[EndTime "14:14:23 PDT"]
[Termination "1stSecond won by checkmate"]

1. d4 {[%clk 0:03:01.9]} 1... Nf6 {[%clk 0:03:00.6]} 2. Nf3 {[%clk 0:03:02.8]}
2... e6 {[%clk 0:03:00.9]} 3. e3 {[%clk 0:03:01.1]} 3... b6 {[%clk 0:02:58.9]}
4. Bd3 {[%clk 0:03:02.3]} 4... Bb7 {[%clk 0:03:00.3]} 5. O-O {[%clk 0:03:02.2]}
5... d5 {[%clk 0:03:00.3]} 6. c4 {[%clk 0:02:54.8]} 6... Nbd7 {[%clk 0:02:56.3]}
7. cxd5 {[%clk 0:02:54.3]} 7... exd5 {[%clk 0:02:56.6]} 8. Nc3 {[%clk
0:02:51.1]} 8... Bd6 {[%clk 0:02:58]} 9. Nb5 {[%clk 0:02:49.3]} 9... Be7 {[%clk
0:02:57]} 10. Qc2 {[%clk 0:02:50.4]} 10... c5 {[%clk 0:02:56.1]} 11. dxc5 {[%clk
0:02:49.1]} 11... bxc5 {[%clk 0:02:50.5]} 12. b3 {[%clk 0:02:39.8]} 12... O-O
{[%clk 0:02:46.9]} 13. Bb2 {[%clk 0:02:40.2]} 13... Re8 {[%clk 0:02:42.9]} 14.
Rfe1 {[%clk 0:02:10.6]} 14... a6 {[%clk 0:02:36.8]} 15. Na3 {[%clk 0:02:04.7]}
15... Bd6 {[%clk 0:02:34.5]} 16. Rad1 {[%clk 0:02:03.6]} 16... Qe7 {[%clk
0:02:32.3]} 17. Nb1 {[%clk 0:02:02.1]} 17... Rac8 {[%clk 0:02:29]} 18. Nbd2
{[%clk 0:02:02.9]} 18... Ne4 {[%clk 0:02:13.7]} 19. Bf1 {[%clk 0:01:54.2]} 19...
f5 {[%clk 0:02:11.4]} 20. g3 {[%clk 0:01:09]} 20... Ndf6 {[%clk 0:02:03.4]} 21.
Bh3 {[%clk 0:00:54.2]} 21... g6 {[%clk 0:01:36.1]} 22. Nh4 {[%clk 0:00:12.1]}
22... Qe6 {[%clk 0:01:27.5]} 23. Nxe4 {[%clk 0:00:11.6]} 23... Nxe4 {[%clk
0:01:27.3]} 24. Bg2 {[%clk 0:00:08.7]} 24... Rc7 {[%clk 0:01:20.5]} 25. Nf3
{[%clk 0:00:08.9]} 25... h6 {[%clk 0:01:19.5]} 26. Nd2 {[%clk 0:00:07.8]} 26...
Rd7 {[%clk 0:01:12.7]} 27. Nxe4 {[%clk 0:00:06]} 27... fxe4 {[%clk 0:01:14.6]}
28. Qc3 {[%clk 0:00:06.2]} 28... Kh7 {[%clk 0:01:16]} 29. Qf6 {[%clk 0:00:04.8]}
29... Qxf6 {[%clk 0:00:28.3]} 30. Bxf6 {[%clk 0:00:06.1]} 30... Be5 {[%clk
0:00:30.2]} 31. Bxe5 {[%clk 0:00:03.7]} 31... Rxe5 {[%clk 0:00:32.1]} 32. Rd2
{[%clk 0:00:04.9]} 32... d4 {[%clk 0:00:22.5]} 33. exd4 {[%clk 0:00:06.1]} 33...
cxd4 {[%clk 0:00:24.4]} 34. Rde2 {[%clk 0:00:06.3]} 34... d3 {[%clk 0:00:22.9]}
35. Rd2 {[%clk 0:00:06.6]} 35... Kg7 {[%clk 0:00:22.2]} 36. h3 {[%clk
0:00:06.7]} 36... Kf6 {[%clk 0:00:23]} 37. Re3 {[%clk 0:00:07.5]} 37... Rc7
{[%clk 0:00:20.3]} 38. f4 {[%clk 0:00:04.8]} 38... Re6 {[%clk 0:00:17.7]} 39.
Re1 {[%clk 0:00:03.2]} 39... g5 {[%clk 0:00:09.2]} 40. Kf2 {[%clk 0:00:04.1]}
40... gxf4 {[%clk 0:00:10.1]} 41. gxf4 {[%clk 0:00:05.4]} 41... Kf5 {[%clk
0:00:11.6]} 42. Ke3 {[%clk 0:00:06.3]} 42... Rg7 {[%clk 0:00:13.2]} 43. Rf2
{[%clk 0:00:06.6]} 43... Rg3+ {[%clk 0:00:14]} 44. Kd4 {[%clk 0:00:07.6]} 44...
d2 {[%clk 0:00:12.4]} 45. Kc5 {[%clk 0:00:03.4]} 45... dxe1=Q {[%clk 0:00:12.9]}
46. Rc2 {[%clk 0:00:03]} 46... Rc6+ {[%clk 0:00:12.9]} 47. Kd4 {[%clk
0:00:02.6]} 47... Rd3# {[%clk 0:00:14.8]} 0-1